fUSD/lending_fUSD_20260620
["ID","MTS","AMOUNT","RATE_DAILY","PERIOD"]
[425818573,1781933454000,-4580.09,0.00033615,2]
[425818575,1781933454000,-200.0,0.00033663,2]
[425818574,1781933454000,-505.0,0.00033643,9]
[425818572,1781933454000,-16667.58,0.00033613,2]
[425818580,1781933454000,-500.0,0.00033669,120]
[425818582,1781933454000,-500.0,0.00033669,120]
[425818583,1781933454000,-500.0,0.00033669,120]
[425818587,1781933454000,-1000.0,0.00033669,120]
[425818588,1781933454000,-1000.0,0.00033669,120]
[425818585,1781933454000,-365.41696827,0.00033669,120]
[425818589,1781933454000,-1000.0,0.00033669,120]
[425818581,1781933454000,-500.0,0.00033669,120]
[425818584,1781933454000,-500.0,0.00033669,120]
[425818586,1781933454000,-1000.0,0.00033669,120]
[425818590,1781933454000,-1000.0,0.00033669,120]
[425818593,1781933454000,-1000.0,0.00033669,120]
[425818597,1781933454000,-1000.0,0.00033669,120]
[425818592,1781933454000,-1000.0,0.00033669,120]
[425818598,1781933454000,-1000.0,0.00033669,120]
[425818594,1781933454000,-1000.0,0.00033669,120]
[425818596,1781933454000,-1000.0,0.00033669,120]
[425818595,1781933454000,-1000.0,0.00033669,120]
[425818546,1781933454000,-15000.0,0.0003342,2]
[425818569,1781933454000,-200.65416567,0.00033561,14]
[425818578,1781933454000,-500.0,0.00033669,120]
[425818591,1781933454000,-1000.0,0.00033669,120]
[425818576,1781933454000,-500.0,0.00033669,120]
[425818577,1781933454000,-500.0,0.00033669,120]
[425818543,1781933454000,-150.0,0.00033406,30]
[425818542,1781933454000,-350.0,0.00033403,2]
[425818554,1781933454000,-10000.0,0.00033467,2]
[425818553,1781933454000,-10000.0,0.00033467,2]
[425818550,1781933454000,-4580.09,0.00033439,2]
[425818557,1781933454000,-7949.21,0.0003349,2]
[425818559,1781933454000,-800.0,0.000335,2]
[425818551,1781933454000,-500.0,0.00033466,120]
[425818558,1781933454000,-150.0,0.00033492,30]
[425818555,1781933454000,-2575.0,0.00033478,10]
[425818599,1781933454000,-1000.0,0.00033669,120]
[425818544,1781933454000,-150.0,0.00033406,30]
[425818552,1781933454000,-1000.0,0.00033466,120]
[425818579,1781933454000,-500.0,0.00033669,120]
[425818549,1781933454000,-22500.0,0.00033438,2]
[425818563,1781933454000,-800.0,0.000335,2]
[425818566,1781933454000,-22500.0,0.00033525,2]
[425818564,1781933454000,-800.0,0.000335,2]
[425818568,1781933454000,-2146.21397318,0.00033531,2]
[425818567,1781933454000,-4580.09,0.0003353,2]
[425818561,1781933454000,-800.0,0.000335,2]
[425818565,1781933454000,-22500.0,0.00033525,2]
[425818560,1781933454000,-800.0,0.000335,2]
[425818556,1781933454000,-353.150451,0.00033487,10]
[425818562,1781933454000,-800.0,0.000335,2]
[425818623,1781933455000,-1000.0,0.00033669,120]
[425818626,1781933455000,-1000.0,0.00033669,120]
[425818618,1781933455000,-1000.0,0.00033669,120]
[425818617,1781933455000,-1000.0,0.00033669,120]
[425818619,1781933455000,-1000.0,0.00033669,120]
[425818621,1781933455000,-1000.0,0.00033669,120]
[425818633,1781933455000,-1000.0,0.00033669,120]
[425818622,1781933455000,-1000.0,0.00033669,120]
[425818628,1781933455000,-1000.0,0.00033669,120]
[425818632,1781933455000,-1000.0,0.00033669,120]
[425818616,1781933455000,-1000.0,0.00033669,120]
[425818634,1781933455000,-1000.0,0.00033669,120]
[425818636,1781933455000,-1000.0,0.00033669,120]
[425818620,1781933455000,-1000.0,0.00033669,120]
[425818615,1781933455000,-1000.0,0.00033669,120]
[425818614,1781933455000,-1000.0,0.00033669,120]
[425818624,1781933455000,-1000.0,0.00033669,120]
[425818635,1781933455000,-1000.0,0.00033669,120]
[425818602,1781933455000,-1000.0,0.00033669,120]
[425818600,1781933455000,-1000.0,0.00033669,120]
[425818601,1781933455000,-1000.0,0.00033669,120]
[425818608,1781933455000,-1000.0,0.00033669,120]
[425818604,1781933455000,-1000.0,0.00033669,120]
[425818625,1781933455000,-1000.0,0.00033669,120]
[425818611,1781933455000,-1000.0,0.00033669,120]
[425818607,1781933455000,-1000.0,0.00033669,120]
[425818609,1781933455000,-1000.0,0.00033669,120]
[425818605,1781933455000,-1000.0,0.00033669,120]
[425818610,1781933455000,-1000.0,0.00033669,120]
[425818612,1781933455000,-1000.0,0.00033669,120]
[425818613,1781933455000,-1000.0,0.00033669,120]
[425818606,1781933455000,-1000.0,0.00033669,120]
[425818637,1781933455000,-1000.0,0.00033669,120]
[425818603,1781933455000,-1000.0,0.00033669,120]
[425818638,1781933455000,-1000.0,0.00033669,120]
[425818656,1781933455000,-10000.0,0.000337,2]
[425818659,1781933455000,-199.65,0.00029132,30]
[425818655,1781933455000,-18040.68,0.000337,2]
[425818657,1781933455000,-274904.64650743,0.000337,7]
[425818660,1781933455000,-84730.49766341,0.000337,7]
[425818658,1781933455000,-298.29,0.0002,2]
[425818653,1781933455000,-4580.09,0.00033697,2]
[425818661,1781933455000,-271.0,0.00016438,2]
[425818666,1781933455000,-199.65,0.00029299,7]
[425818662,1781933455000,-271.0,0.0001763,2]
[425818663,1781933455000,-150.89856981,0.00027397,10]
[425818665,1781933455000,-11439.52143019,0.00027397,10]
[425818667,1781933455000,-199.65,0.00029467,2]
[425818639,1781933455000,-1000.0,0.00033669,120]
[425818664,1781933455000,-271.0,0.0001841,2]
[425818651,1781933455000,-314.28814534,0.00033693,2]
[425818654,1781933455000,-10000.0,0.000337,2]
[425818644,1781933455000,-1000.0,0.00033669,120]
[425818631,1781933455000,-1000.0,0.00033669,120]
[425818627,1781933455000,-1000.0,0.00033669,120]
[425818630,1781933455000,-1000.0,0.00033669,120]
[425818641,1781933455000,-1000.0,0.00033669,120]
[425818640,1781933455000,-1000.0,0.00033669,120]
[425818652,1781933455000,-405.8378559,0.00033693,2]
[425818629,1781933455000,-1000.0,0.00033669,120]
[425818642,1781933455000,-1000.0,0.00033669,120]
[425818643,1781933455000,-1000.0,0.00033669,120]
[425818645,1781933455000,-1000.0,0.00033669,120]
[425818648,1781933455000,-183.95686686,0.00033684,2]
[425818647,1781933455000,-378604.0,0.0003367,30]
[425818649,1781933455000,-171.27267761,0.00033684,2]
[425818650,1781933455000,-150.0,0.00033691,30]
[425818646,1781933455000,-1035.42271406,0.00033669,120]
[425818670,1781933456000,-1961.7860614,0.000337,7]
[425818669,1781933456000,-25086.99454922,0.000337,7]
[425818668,1781933456000,-199.65,0.00029634,30]
[425818676,1781933456000,-2525.44562831,0.00033,2]
[425818672,1781933456000,-11321.25120733,0.000337,7]
[425818675,1781933456000,-3000.02974999,0.00033,2]
[425818671,1781933456000,-503.92268294,0.000337,7]
[425818674,1781933456000,-4034.89170447,0.00033,2]
[425818673,1781933456000,-584.628624,0.00033,11]
[425818677,1781933456000,-264.5973708,0.0001973,2]
[425818679,1781933477000,-714.38,0.0001665,7]
[425818680,1781933530000,-151.0,0.00018,2]
[425818682,1781933584000,-152.0,0.00016437,2]
[425818683,1781933638000,-183.0,0.00016,2]
[425818685,1781933639000,634.19,0.00030047,120]
[425818684,1781933639000,634.19,0.00027315,120]
[425818686,1781933692000,-250.0,0.00014,2]
[425818687,1781933861000,-170.99763494,0.00016,2]
[425818688,1781933881000,152.0,0.00029984,120]
[425818689,1781933914000,-500.0,0.00016,2]
[425818690,1781933968000,-300.0,0.00015998,2]
[425818691,1781934022000,-592.74229366,0.00015999,2]
[425818692,1781934027000,587.0,0.00030137,120]
[425818693,1781934075000,-500.0,0.00015998,2]
[425818694,1781934129000,-151.0,0.00014792,2]
[425818695,1781934182000,-151.0,0.00014792,2]
[425818696,1781934236000,-166.66,0.00014663,2]
[425818697,1781934289000,-199.5,0.00014771,2]
[425818698,1781934343000,-151.0,0.00014879,2]
[425818699,1781934512000,-581.81487073,0.00014879,2]
[425818700,1781934567000,-151.0,0.00014878,2]
[425818701,1781934620000,-150.0,0.00014878,2]
[425818706,1781934631000,-151.0,0.00014878,2]
[425818717,1781934632000,-500.0,0.00014878,2]
[425818716,1781934632000,-500.0,0.00014878,2]
[425818718,1781934632000,-500.0,0.00014878,2]
[425818714,1781934632000,-500.0,0.00014878,2]
[425818713,1781934632000,-500.0,0.00014878,2]
[425818715,1781934632000,-500.0,0.00014878,2]
[425818709,1781934632000,-500.0,0.00014878,2]
[425818711,1781934632000,-500.0,0.00014878,2]
[425818707,1781934632000,-153.0,0.00014878,2]
[425818708,1781934632000,-151.0,0.00014878,2]
[425818710,1781934632000,-500.0,0.00014878,2]
[425818712,1781934632000,-500.0,0.00014878,2]
[425818721,1781934632000,-500.0,0.00014878,2]
[425818727,1781934632000,-500.0,0.00014878,2]
[425818719,1781934632000,-500.0,0.00014878,2]
[425818720,1781934632000,-500.0,0.00014878,2]
[425818734,1781934632000,-248.73504324,0.00014878,2]
[425818729,1781934632000,-500.0,0.00014878,2]
[425818730,1781934632000,-500.0,0.00014878,2]
[425818731,1781934632000,-500.0,0.00014878,2]
[425818732,1781934632000,-500.0,0.00014878,2]
[425818733,1781934632000,-500.0,0.00014878,2]
[425818728,1781934632000,-500.0,0.00014878,2]
[425818726,1781934632000,-500.0,0.00014878,2]
[425818724,1781934632000,-500.0,0.00014878,2]
[425818723,1781934632000,-500.0,0.00014878,2]
[425818722,1781934632000,-500.0,0.00014878,2]
[425818725,1781934632000,-500.0,0.00014878,2]
[425818743,1781934637000,-152.0,0.00014879,2]
[425818736,1781934637000,-150.0,0.00014878,2]
[425818737,1781934637000,-160.0,0.00014878,2]
[425818738,1781934637000,-29.88265974,0.00014879,2]
[425818739,1781934637000,-120.11734026,0.00014879,2]
[425818740,1781934637000,-151.0,0.00014879,2]
[425818741,1781934637000,-152.0,0.00014879,2]
[425818742,1781934637000,-152.0,0.00014879,2]
[425818745,1781934637000,-101.79641482,0.00014879,2]
[425818746,1781934637000,-150.0,0.00014879,2]
[425818744,1781934637000,-48.20358518,0.00014879,2]
[425818747,1781934637000,-153.0,0.00014879,2]
[425818756,1781934637000,-311.0,0.00014905,2]
[425818755,1781934637000,-124.07370258,0.0001488,2]
[425818754,1781934637000,-267.15103518,0.0001488,2]
[425818750,1781934637000,-151.0,0.00014879,2]
[425818753,1781934637000,-151.0,0.00014879,2]
[425818751,1781934637000,-151.0,0.00014879,2]
[425818749,1781934637000,-150.0,0.00014879,2]
[425818748,1781934637000,-151.0,0.00014879,2]
[425818752,1781934637000,-151.0,0.00014879,2]
[425818779,1781934638000,-166.66,0.00015589,2]
[425818773,1781934638000,-316.0,0.00015001,2]
[425818777,1781934638000,-2399.32,0.00015109,2]
[425818789,1781934638000,-151.0,0.00015998,2]
[425818778,1781934638000,-166.66,0.0001528,2]
[425818780,1781934638000,-166.66,0.00015898,2]
[425818784,1781934638000,-317.0,0.00015998,2]
[425818787,1781934638000,-310.0,0.00015998,2]
[425818782,1781934638000,-205.93227683,0.00015998,2]
[425818785,1781934638000,-7.78042153,0.00015998,2]
[425818786,1781934638000,-142.21957847,0.00015998,2]
[425818788,1781934638000,-315.0,0.00015998,2]
[425818792,1781934638000,-309.0,0.00015998,2]
[425818772,1781934638000,-319.0,0.00015001,2]
[425818781,1781934638000,-300.0,0.00015997,2]
[425818775,1781934638000,-311.0,0.0001508,2]
[425818759,1781934638000,-1000.0,0.00014922,2]
[425818774,1781934638000,-316.0,0.0001508,2]
[425818760,1781934638000,-318.0,0.00014944,2]
[425818758,1781934638000,-318.0,0.00014905,2]
[425818757,1781934638000,-313.0,0.00014905,2]
[425818761,1781934638000,-170.27,0.00014955,2]
[425818762,1781934638000,-314.0,0.00014956,2]
[425818763,1781934638000,-150.99,0.00014956,2]
[425818776,1781934638000,-318.0,0.0001508,2]
[425818764,1781934638000,-354.2,0.00014956,2]
[425818765,1781934638000,-16.43690665,0.00014956,2]
[425818766,1781934638000,-1477.44309335,0.00014956,2]
[425818767,1781934638000,-1563.46,0.00014956,2]
[425818770,1781934638000,-166.66,0.00014972,2]
[425818769,1781934638000,-6256.19309335,0.00014956,2]
[425818771,1781934638000,-150.0,0.00014992,2]
[425818768,1781934638000,-2359.09690665,0.00014956,2]
[425818791,1781934638000,-310.0,0.00015998,2]
[425818810,1781934638000,-151.0,0.00016003,2]
[425818790,1781934638000,-314.0,0.00015998,2]
[425818813,1781934638000,-314.0,0.00016006,2]
[425818817,1781934638000,-280.65361113,0.00016021,2]
[425818816,1781934638000,-318.0,0.00016015,2]
[425818818,1781934638000,-49.08134686,0.00016021,2]
[425818821,1781934638000,-500.0,0.00016021,2]
[425818822,1781934638000,-500.0,0.00016021,2]
[425818814,1781934638000,-319.0,0.00016006,2]
[425818820,1781934638000,-500.0,0.00016021,2]
[425818819,1781934638000,-500.0,0.00016021,2]
[425818824,1781934638000,-500.0,0.00016021,2]
[425818825,1781934638000,-500.0,0.00016021,2]
[425818827,1781934638000,-5520.62606031,0.00016338,2]
[425818826,1781934638000,-166.66,0.00016206,2]
[425818793,1781934638000,-150.0,0.00015998,2]
[425818823,1781934638000,-825.14,0.00016021,2]
[425818811,1781934638000,-317.0,0.00016005,2]
[425818815,1781934638000,-151.0,0.00016008,2]
[425818809,1781934638000,-314.0,0.00016003,2]
[425818794,1781934638000,-312.0,0.00015998,2]
[425818796,1781934638000,-151.0,0.00015998,2]
[425818795,1781934638000,-319.0,0.00015998,2]
[425818797,1781934638000,-320.0,0.00015998,2]
[425818812,1781934638000,-316.0,0.00016005,2]
[425818800,1781934638000,-151.0,0.00015998,2]
[425818799,1781934638000,-312.0,0.00015998,2]
[425818801,1781934638000,-319.0,0.00015998,2]
[425818798,1781934638000,-316.0,0.00015998,2]
[425818802,1781934638000,-150.11,0.00015998,2]
[425818804,1781934638000,-150.0,0.00016002,2]
[425818806,1781934638000,-158.21637757,0.00016002,2]
[425818807,1781934638000,-152.0,0.00016002,2]
[425818805,1781934638000,-161.78362243,0.00016002,2]
[425818808,1781934638000,-317.0,0.00016002,2]
[425818803,1781934638000,-300.0,0.00016,2]
[425818842,1781934639000,-8993.41262832,0.000167,2]
[425818833,1781934639000,-381.40685821,0.00016338,2]
[425818834,1781934639000,-378.80780789,0.00016338,2]
[425818836,1781934639000,-152.0,0.00016437,2]
[425818839,1781934639000,-272.6,0.00016438,2]
[425818837,1781934639000,-151.0,0.00016437,2]
[425818838,1781934639000,-500.0,0.00016437,2]
[425818841,1781934639000,-161.02,0.00016512,2]
[425818835,1781934639000,-16730.7267629,0.00016338,2]
[425818845,1781934639000,-440.0,0.00017117,2]
[425818840,1781934639000,-277.40263,0.00016438,2]
[425818850,1781934639000,-3378.80165067,0.0001744,2]
[425818846,1781934639000,-150.0,0.00017133,2]
[425818847,1781934639000,-500.0,0.00017261,2]
[425818851,1781934639000,-1555.5,0.00017556,2]
[425818844,1781934639000,-900.0,0.00017104,2]
[425818848,1781934639000,-500.0,0.00017262,2]
[425818843,1781934639000,-1500.0,0.00017008,2]
[425818849,1781934639000,-242.97,0.00017402,2]
[425818882,1781934640000,-250.1323668,0.00019712,2]
[425818883,1781934640000,-1798.80895522,0.00019748,2]
[425818876,1781934640000,-176.12,0.00018677,2]
[425818877,1781934640000,-6554.75220503,0.00019137,2]
[425818879,1781934640000,-161.02,0.00019237,2]
[425818881,1781934640000,-250.0,0.00019658,2]
[425818880,1781934640000,-1196.0,0.00019452,2]
[425818884,1781934640000,-500.0,0.00019999,2]
[425818885,1781934640000,-825.14,0.00019999,2]
[425818892,1781934640000,-155.0,0.0002,2]
[425818887,1781934640000,-192.0,0.0002,2]
[425818891,1781934640000,-15679.09,0.0002,2]
[425818888,1781934640000,-601.0,0.0002,2]
[425818878,1781934640000,-1734.62772924,0.000192,2]
[425818890,1781934640000,-161.0,0.0002,2]
[425818889,1781934640000,-782.0,0.0002,2]
[425818893,1781934640000,-378.0,0.0002,2]
[425818895,1781934640000,-334.0,0.0002,2]
[425818894,1781934640000,-177.0,0.0002,2]
[425818896,1781934640000,-245.0,0.0002,2]
[425818886,1781934640000,-400.0,0.0002,2]
[425818875,1781934640000,-1672.7364795,0.00018652,2]
[425818869,1781934640000,-231.43121047,0.000184,2]
[425818873,1781934640000,-500.0,0.00018448,2]
[425818899,1781934640000,-23011.56748926,0.00020362,2]
[425818852,1781934640000,-200.0,0.00017794,2]
[425818857,1781934640000,-526.7379631,0.00017923,2]
[425818855,1781934640000,-502.50435737,0.00017923,2]
[425818854,1781934640000,-500.0,0.00017923,2]
[425818853,1781934640000,-161.02,0.00017874,2]
[425818856,1781934640000,-825.14,0.00017923,2]
[425818859,1781934640000,-151.0,0.00018,2]
[425818858,1781934640000,-350.0,0.00018,2]
[425818860,1781934640000,-151.0,0.00018,2]
[425818862,1781934640000,-151.0,0.00018,2]
[425818863,1781934640000,-1103.05772129,0.00018104,2]
[425818861,1781934640000,-152.0,0.00018,2]
[425818864,1781934640000,-509.99577871,0.00018104,2]
[425818865,1781934640000,-4347.26526603,0.0001835,2]
[425818866,1781934640000,-3800.0,0.0001835,2]
[425818868,1781934640000,-20575.8,0.00018356,2]
[425818870,1781934640000,-231.43121046,0.000184,2]
[425818871,1781934640000,-231.43121046,0.000184,2]
[425818867,1781934640000,-14864.30222323,0.0001835,2]
[425818872,1781934640000,-272.6,0.0001841,2]
[425818874,1781934640000,-900.0,0.00018474,2]
[425818901,1781934640000,-421.0,0.00020821,2]
[425818898,1781934640000,-1865.36488656,0.00020296,2]
[425818935,1781934640000,-151.0,0.0002194,2]
[425818925,1781934640000,-151.0,0.0002194,2]
[425818926,1781934640000,-151.0,0.0002194,2]
[425818928,1781934640000,-151.0,0.0002194,2]
[425818934,1781934640000,-151.0,0.0002194,2]
[425818932,1781934640000,-151.0,0.0002194,2]
[425818933,1781934640000,-151.0,0.0002194,2]
[425818931,1781934640000,-151.0,0.0002194,2]
[425818930,1781934640000,-151.0,0.0002194,2]
[425818936,1781934640000,-151.0,0.0002194,2]
[425818937,1781934640000,-151.0,0.0002194,2]
[425818938,1781934640000,-151.0,0.0002194,2]
[425818940,1781934640000,-192.0,0.00022,2]
[425818943,1781934640000,-161.0,0.00022,2]
[425818945,1781934640000,-378.0,0.00022,2]
[425818944,1781934640000,-155.0,0.00022,2]
[425818942,1781934640000,-782.0,0.00022,2]
[425818941,1781934640000,-601.0,0.00022,2]
[425818939,1781934640000,-151.0,0.0002194,2]
[425818947,1781934640000,-334.0,0.00022,2]
[425818946,1781934640000,-177.0,0.00022,2]
[425818897,1781934640000,-1196.0,0.00020136,2]
[425818927,1781934640000,-151.0,0.0002194,2]
[425818921,1781934640000,-151.0,0.0002194,2]
[425818929,1781934640000,-2080.17592889,0.0002194,2]
[425818923,1781934640000,-151.0,0.0002194,2]
[425818902,1781934640000,-1934.38338736,0.00020844,2]
[425818903,1781934640000,-192.0,0.00021,2]
[425818900,1781934640000,-272.6,0.00020381,2]
[425818905,1781934640000,-782.0,0.00021,2]
[425818906,1781934640000,-161.0,0.00021,2]
[425818904,1781934640000,-601.0,0.00021,2]
[425818922,1781934640000,-151.0,0.0002194,2]
[425818908,1781934640000,-378.0,0.00021,2]
[425818910,1781934640000,-334.0,0.00021,2]
[425818912,1781934640000,-500.0,0.00021251,2]
[425818913,1781934640000,-6499.59,0.0002137,2]
[425818907,1781934640000,-155.0,0.00021,2]
[425818909,1781934640000,-177.0,0.00021,2]
[425818914,1781934640000,-2005.9555727,0.00021392,2]
[425818916,1781934640000,-236.09215222,0.00021622,2]
[425818915,1781934640000,-500.0,0.00021403,2]
[425818917,1781934640000,-634.19,0.00021852,2]
[425818920,1781934640000,-151.0,0.0002194,2]
[425818918,1781934640000,-5000.0,0.00021918,2]
[425818911,1781934640000,-245.0,0.00021,2]
[425818919,1781934640000,-151.0,0.0002194,2]
[425818924,1781934640000,-151.0,0.0002194,2]
[425818977,1781934641000,-163.32820068,0.00024,2]
[425818987,1781934641000,-634.19,0.00024584,2]
[425818982,1781934641000,-2405.55389863,0.00024132,2]
[425818985,1781934641000,-23011.56748926,0.00024386,2]
[425818980,1781934641000,-334.0,0.00024,2]
[425818984,1781934641000,-272.6,0.00024324,2]
[425818986,1781934641000,-180.978146,0.00024404,7]
[425818983,1781934641000,-16219.84225029,0.0002421,2]
[425818978,1781934641000,-378.0,0.00024,2]
[425818988,1781934641000,-500.0,0.00024605,2]
[425818981,1781934641000,-245.0,0.00024,2]
[425818989,1781934641000,-219.92,0.00024645,7]
[425819003,1781934641000,-338.0,0.00025,2]
[425818994,1781934641000,-2494.55939288,0.0002468,2]
[425818992,1781934641000,-161.45,0.00024658,2]
[425818993,1781934641000,-162.7,0.00024658,2]
[425818995,1781934641000,-166.66,0.00024913,2]
[425818996,1781934641000,-196.0,0.00025,2]
[425818991,1781934641000,-1000.0,0.00024658,2]
[425818997,1781934641000,-616.21825695,0.00025,2]
[425819000,1781934641000,-382.8983695,0.00025,2]
[425818999,1781934641000,-178.84484808,0.00025,2]
[425819001,1781934641000,-7995.96,0.00025,3]
[425818979,1781934641000,-177.0,0.00024,2]
[425818990,1781934641000,-213.88,0.00024658,2]
[425818973,1781934641000,-192.0,0.00024,2]
[425818951,1781934641000,-272.6,0.00022353,2]
[425818972,1781934641000,-259.909435,0.00023607,7]
[425818948,1781934641000,-245.0,0.00022,2]
[425818952,1781934641000,-23011.56748926,0.00022374,2]
[425818950,1781934641000,-324.72,0.00022086,7]
[425818953,1781934641000,-1714.39,0.00022466,2]
[425818955,1781934641000,-1000.0,0.00022773,2]
[425818949,1781934641000,-5986.96,0.00022,2]
[425818954,1781934641000,-2157.14243826,0.00022488,2]
[425818956,1781934641000,-16219.84225034,0.00022936,2]
[425818957,1781934641000,-192.0,0.00023,2]
[425818958,1781934641000,-601.0,0.00023,2]
[425818959,1781934641000,-782.0,0.00023,2]
[425818966,1781934641000,-718.0,0.00023,2]
[425818963,1781934641000,-177.0,0.00023,2]
[425818961,1781934641000,-155.0,0.00023,2]
[425818962,1781934641000,-378.0,0.00023,2]
[425818960,1781934641000,-161.0,0.00023,2]
[425818964,1781934641000,-334.0,0.00023,2]
[425818965,1781934641000,-245.0,0.00023,2]
[425818967,1781934641000,-131651.95282471,0.00023,7]
[425818969,1781934641000,-500.0,0.00023498,2]
[425818968,1781934641000,-2236.95670847,0.00023036,2]
[425818974,1781934641000,-601.0,0.00024,2]
[425818976,1781934641000,-161.0,0.00024,2]
[425818970,1781934641000,-825.14,0.00023498,2]
[425818971,1781934641000,-2319.72410669,0.00023584,2]
[425818975,1781934641000,-782.0,0.00024,2]
[425819004,1781934641000,-261.0,0.00025,2]
[425818998,1781934641000,-799.70008222,0.00025,2]
[425819006,1781934641000,-221.51,0.00025,2]
[425819035,1781934641000,-2781.82699784,0.00026324,2]
[425819038,1781934641000,-263.0,0.00026505,5]
[425819036,1781934641000,-23011.56748926,0.00026397,2]
[425819039,1781934641000,-375.106014,0.00026505,2]
[425819042,1781934641000,-500.0,0.00026799,2]
[425819041,1781934641000,-16219.84225029,0.00026757,2]
[425819046,1781934641000,-1500.84218978,0.000269,2]
[425819043,1781934641000,-2884.75459676,0.00026872,2]
[425819045,1781934641000,-1197.81519391,0.000269,2]
[425819044,1781934641000,-1000.0,0.00026882,2]
[425819040,1781934641000,-166.66,0.00026558,2]
[425819048,1781934641000,-289.45219248,0.000269,2]
[425819047,1781934641000,-1551.1294858,0.000269,2]
[425819049,1781934641000,-423.64648916,0.000269,2]
[425819050,1781934641000,-200.0,0.00027079,2]
[425819052,1781934641000,-1500.84218978,0.000272,2]
[425819051,1781934641000,-1197.81519391,0.000272,2]
[425819057,1781934641000,-166.66,0.0002738,2]
[425819056,1781934641000,-460.42858565,0.00027324,2]
[425819053,1781934641000,-1551.1294858,0.000272,2]
[425819058,1781934641000,-221.51,0.00027387,2]
[425819054,1781934641000,-289.45219248,0.000272,2]
[425819055,1781934641000,-423.64648916,0.000272,2]
[425819009,1781934641000,-2586.85809042,0.00025228,2]
[425819060,1781934641000,-361.49809199,0.00027397,2]
[425819037,1781934641000,-152.0,0.00026442,7]
[425819031,1781934641000,-825.14,0.00025785,2]
[425819059,1781934641000,-661.1225485,0.00027387,2]
[425819034,1781934641000,-5528.0,0.000263,5]
[425819030,1781934641000,-500.0,0.00025785,2]
[425819002,1781934641000,-184.0,0.00025,2]
[425819005,1781934641000,-221.51,0.00025,2]
[425819007,1781934641000,-53024.0,0.00025,2]
[425819010,1781934641000,-221.51,0.00025429,2]
[425819012,1781934641000,-1000.0,0.00025438,2]
[425819013,1781934641000,-409162.295,0.00025439,2]
[425819011,1781934641000,-247.81052588,0.00025438,2]
[425819014,1781934641000,-16219.84225029,0.00025484,2]
[425819020,1781934641000,-500.0,0.00025589,2]
[425819016,1781934641000,-500.0,0.00025589,2]
[425819018,1781934641000,-500.0,0.00025589,2]
[425819017,1781934641000,-500.0,0.00025589,2]
[425819008,1781934641000,-500.0,0.00025155,2]
[425819015,1781934641000,-500.0,0.00025589,2]
[425819033,1781934641000,-272.6,0.00026296,2]
[425819027,1781934641000,-161.45,0.00025753,7]
[425819032,1781934641000,-1783.53,0.00026192,2]
[425819021,1781934641000,-500.0,0.00025589,2]
[425819028,1781934641000,-162.7,0.00025753,7]
[425819029,1781934641000,-2682.57183977,0.00025776,2]
[425819024,1781934641000,-150.0,0.00025589,2]
[425819023,1781934641000,-376.46013189,0.00025589,2]
[425819025,1781934641000,-5528.0,0.000256,3]
[425819022,1781934641000,-500.0,0.00025589,2]
[425819019,1781934641000,-500.0,0.00025589,2]